[Event "British Championship 2024"]
[Site "Hull"]
[Date "2024.07.31"]
[Round "3.14"]
[White "Dicen, Elis Denele"]
[Black "Han, Yichen"]
[Result "0-1"]
[Annotator "TA"]
[ECO "C45"]
[WhiteElo "2073"]
[BlackElo "2414"]
[PlyCount "116"]
[EventDate "2024.07.31"]
[EventCountry "GBR"]
[SourceTitle "playchess.com"]
[Source "ChessBase"]
[SourceQuality "1"]
[TimeControl "40/5400+30:1800+30"]

{[%evp 13,115,0,0,0,0,-35,0,0,0,-20,30,27,19,17,39,35,47,24,20,18,19,0,45,45,38,25,58,0,0,9,14,4,4,4,10,18,31,21,19,19,14,7,29,0,0,0,0,0,0,-12,0,-6,-4,-63,-11,-85,-63,-53,-32,-57,-52,-114,-91,-116,-108,-211,-216,-202,-212,-236,-220,-207,-217,-218,-216,-212,-212,-288,-281,-360,-391,-370,-395,-563,-562,-662,-662,-1636,-1451,-29955,-29964,-29970,-29971,-29979,-29980,-29980,-29981,-29981,-29982,-29996,-29997,-29998,-29999,-29999]} 1. e4 {[%emt 0:00:03]} e5 {[%emt 0:00:04]} 2. Nf3 {[%emt 0:00:06]} Nc6 {[%emt 0:00:04]} 3. d4 {[%emt 0:00:07]} exd4 {[%emt 0:00:04]} 4. Nxd4 {[%emt 0:00:08]} Qf6 {[%emt 0:00:09]} 5. Be3 {[%emt 0:00:29]} Bc5 {[%emt 0:00:26]} 6. c3 {[%emt 0:00:42]} Qg6 {[%emt 0:06:43]} 7. Nd2 {[%emt 0:09:36]} Nf6 {[%emt 0:03:00]} 8. h4 {[%emt 0:21:03] Hoping for h5.} h5 {[%emt 0:01:37]} 9. Nf5 {[%emt 0:09:14]} Bxe3 {[%emt 0:18:18]} 10. Nxe3 {[%emt 0:00:23] The position is equal.} d6 {[%emt 0:00:40]} 11. Qc2 {[%emt 0:02:10] [#]} d5 {[%emt 0:04:27]} 12. exd5 $11 {[%emt 0:04:18]} Qxc2 {[%emt 0:01:49]} 13. Nxc2 {[%emt 0:00:08]} Nxd5 {[%emt 0:00:04]} 14. O-O-O {[%emt 0:03:42]} O-O {[%emt 0:03:37]} 15. Nf3 {[%emt 0:04:19]} Nf6 {[%emt 0:03:26]} 16. Bb5 {[%emt 0:06:38]} Ne7 {[%emt 0:01:21][%cal Bc6e7,Be7g6,Bg6f4,Bf4e2][%mdl 32]} 17. Ne3 {[%emt 0:02:37]} Ng6 {[%emt 0:03:48]} 18. Ng5 {[%emt 0:04:24]} c6 {[%emt 0:02:41]} 19. Be2 {[%emt 0:01:59]} Nf4 {[%emt 0:04:39]} 20. Rd2 {[%emt 0:04:04]} (20. Bc4 $14 {is more appropriate.}) 20... Nxe2+ {[%emt 0:05:37]} 21. Rxe2 {[%emt 0:00:08]} Bd7 {[%emt 0:03:02]} 22. g3 {[%emt 0:02:07]} Rae8 {[%emt 0:00:59]} 23. Rhe1 {[%emt 0:01:59]} b5 {[%emt 0:03:25] Against Nc4} 24. Nc2 {[%emt 0:02:10]} Rd8 {[%emt 0:00:49]} 25. Rd2 {[%emt 0:01:18]} Rfe8 {[%emt 0:03:27]} 26. Rxe8+ {[%emt 0:02:58]} Rxe8 {[%emt 0:01:24]} 27. Ne3 {[%emt 0:00:54]} Re7 {[%emt 0:02:11]} 28. Kc2 {[%emt 0:01:46]} g6 {[%emt 0:01:57]} 29. Re2 {[%emt 0:06:06]} c5 {[%emt 0:07:21]} 30. b3 {[%emt 0:01:46]} Bc6 {[%emt 0:03:05]} 31. Rd2 {[%emt 0:01:11]} Kg7 {[%emt 0:00:52]} 32. a3 {[%emt 0:01:30]} Ng4 {[%emt 0:03:27]} 33. Nd1 {[%emt 0:02:18]} (33. Nxg4 $11 hxg4 34. Kd1) 33... Bb7 {[%emt 0:02:34]} (33... c4 $15 34. bxc4 bxc4) 34. Nh3 {[%emt 0:01:49]} (34. Rd6 $11 {keeps the balance.}) 34... Be4+ {[%emt 0:01:15]} 35. Kc1 {[%emt 0:00:57]} Bf5 {[%emt 0:04:21]} 36. Nf4 {[%emt 0:00:34]} ({Wrong is} 36. f3 $2 Ne5 37. Nf4 Nxf3 $19) 36... Re1 {[%emt 0:00:34]} 37. Re2 {[%emt 0:00:48] Inhibits Be4. White is now going downhill.} (37. c4 $15) 37... Rh1 {[%emt 0:01:06]} 38. Kd2 {[%emt 0:01:29]} Nh2 {[%emt 0:00:21] Strongly threatening ...Bg4. Black is more active.} 39. Re7 {[%emt 0:01:01]} (39. Kc1 $17) 39... Nf3+ $19 {[%emt 0:01:54]} 40. Kc1 {[%emt 0:00:46][%cal Of4g2] [#]} Bg4 $1 {[%emt 0:01:13]} 41. Kc2 {[%emt 0:15:01][%cal Od1e3] [#]} (41. Rxa7 $2 {perishes.} Ne5 42. Re7 Rxd1+ $19) 41... Nxh4 $1 {[%emt 0:02:54][%mdl 512]} 42. Ne3 {[%emt 0:01:36] [#]} Nf5 {[%emt 0:00:54]} 43. Nxf5+ {[%emt 0:03:13]} Bxf5+ {[%emt 0:00:41][%mdl 4096] Endgame. KRB-KRN} 44. Kd2 {[%emt 0:00:13]} g5 {[%emt 0:02:52]} 45. Nd5 {[%emt 0:02:03]} Be6 {[%emt 0:02:36]} 46. Nc7 {[%emt 0:01:10]} Bxb3 {[%emt 0:00:28]} 47. Re5 {[%emt 0:01:04]} Kg6 {[%emt 0:02:35]} ({Weaker is} 47... Rd1+ 48. Ke2 $19) 48. Rxc5 {[%emt 0:00:23]} (48. f4 $142 Rh2+ 49. Ke3) 48... h4 {[%emt 0:00:30]} 49. gxh4 {[%emt 0:00:55]} gxh4 {[%emt 0:00:07]} 50. Ke2 {[%emt 0:01:52]} h3 {[%emt 0:01:57] And now ...h2 would win.} 51. f4 {[%emt 0:01:54]} h2 {[%emt 0:00:34] Black mates.} 52. Rg5+ {[%emt 0:00:47]} Kh6 {[%emt 0:00:21]} 53. Rg2 {[%emt 0:00:32]} Bc4+ {[%emt 0:00:30]} 54. Kf2 {[%emt 0:00:16]} Rf1+ {[%emt 0:00:10]} 55. Kg3 {[%emt 0:00:06]} h1=Q {[%emt 0:00:05]} 56. f5 {[%emt 0:00:35]} Kg5 {[%emt 0:00:13][%csl Gg5][%cal Rh1h4]} 57. Rf2 {[%emt 0:00:14]} Rg1+ {[%emt 0:00:11]} 58. Rg2 {[%emt 0:00:07]} Qxg2# {[%emt 0:00:04] Weighted Error Value: White=0.44/Black=0.07 (flawless) .  Mistake:       	White=6     	Black=2      Inaccurate:     	White=4     	Black=3      OK:         	White=10    	Black=14     Best:        	White=3     	Black=2      Strong:       	---       	Black=1} 0-1

[Event "British Championship 2024"]
[Site "Hull"]
[Date "2024.07.31"]
[Round "3.15"]
[White "Toma, Katarzyna"]
[Black "Wells, Peter K"]
[Result "0-1"]
[Annotator "RC"]
[ECO "C45"]
[WhiteElo "2220"]
[BlackElo "2354"]
[PlyCount "68"]
[EventDate "2024.07.31"]
[EventCountry "GBR"]
[SourceTitle "playchess.com"]
[Source "ChessBase"]
[SourceQuality "1"]
[TimeControl "40/5400+30:1800+30"]

1. e4 {[%emt 0:00:25]} e5 {[%emt 0:00:15]} 2. Nf3 {[%emt 0:00:11]} Nc6 {[%emt 0:00:08]} 3. d4 {[%emt 0:00:22]} exd4 {[%emt 0:00:09]} 4. Nxd4 {[%emt 0:00:11]} Bc5 {[%emt 0:00:29]} 5. Nb3 {[%emt 0:00:22]} Bb6 {[%emt 0:00:39]} 6. Nc3 {[%emt 0:00:33]} d6 {[%emt 0:01:09]} 7. Bf4 {[%emt 0:01:24]} Nf6 {[%emt 0:02:41]} 8. Qd2 {[%emt 0:02:39]} O-O {[%emt 0:06:46]} 9. O-O-O {[%emt 0:01:19]} a5 {[%emt 0:07:40]} 10. a4 {[%emt 0:00:35]} Be6 {[%emt 0:00:48]} 11. f3 {[%emt 0:04:26]} Bxb3 {[%emt 0:35:12]} 12. cxb3 {[%emt 0:00:07]} Nd7 {[%emt 0:00:48]} 13. Bc4 {[%emt 0:25:26]} Nce5 {[%emt 0:04:08]} 14. Nd5 {[%emt 0:17:02]} Bc5 {[%emt 0:04:51]} 15. Bg5 {[%emt 0:02:31]} Nxc4 {[%emt 0:08:38]} 16. bxc4 {[%emt 0:01:02]} f6 {[%emt 0:00:13]} 17. Bf4 {[%emt 0:05:30]} Ne5 {[%emt 0:06:38]} 18. Qc2 {[%emt 0:02:07]} c6 {[%emt 0:01:50]} 19. Nc3 {[%emt 0:01:22]} Qb6 {[%emt 0:02:14]} 20. Ne2 {[%emt 0:08:15]} Qb4 {[%emt 0:02:18]} 21. Bxe5 {[%emt 0:02:46]} fxe5 {[%emt 0:00:13]} 22. Rd3 {[%emt 0:00:16]} b5 {[%emt 0:01:45]} 23. cxb5 {[%emt 0:08:18]} cxb5 {[%emt 0:00:04]} 24. Nc3 {[%emt 0:01:24]} Bd4 {[%emt 0:05:32]} 25. Nd5 {[%emt 0:05:05]} Qxa4 {[%emt 0:01:39]} 26. Qxa4 {[%emt 0:01:37]} bxa4 {[%emt 0:00:04]} 27. Ra3 {[%emt 0:00:28]} Rab8 {[%emt 0:01:08]} 28. Nc3 {[%emt 0:06:25]} Rb3 {[%emt 0:03:27]} 29. Nxa4 {[%emt 0:01:54]} Bxb2+ {[%emt 0:00:13]} 30. Nxb2 {[%emt 0:00:38]} Rxa3 {[%emt 0:00:03]} 31. Kb1 {[%emt 0:00:19]} Re3 {[%emt 0:02:00]} 32. Rc1 {[%emt 0:00:48]} Re2 {[%emt 0:00:30]} 33. Nc4 {[%emt 0:00:39]} Rb8+ {[%emt 0:00:37]} 34. Ka1 {[%emt 0:00:04]} Rc8 {[%emt 0:00:11]} 0-1

[Event "British Championship 2024"]
[Site "Hull"]
[Date "2024.07.31"]
[Round "3.16"]
[White "Grieve, Harry"]
[Black "Shearsby, Jude"]
[Result "1-0"]
[Annotator "TA"]
[ECO "B72"]
[WhiteElo "2470"]
[BlackElo "2092"]
[PlyCount "125"]
[EventDate "2024.07.31"]
[EventCountry "GBR"]
[SourceTitle "playchess.com"]
[Source "ChessBase"]
[SourceQuality "1"]
[TimeControl "40/5400+30:1800+30"]

{[%evp 10,125,52,41,45,55,81,75,81,8,12,5,11,8,0,0,0,8,0,7,15,7,21,2,0,0,0,0,0,0,0,-28,29,38,56,35,30,24,61,60,68,70,118,115,161,128,156,170,171,156,191,188,189,189,267,192,206,207,219,178,195,195,175,181,229,256,257,255,263,263,219,265,291,280,301,314,308,308,300,322,315,334,331,339,351,337,726,718,770,386,474,371,451,451,454,446,458,441,643,692,658,450,583,0,555,0,629,547,835,827,825,822,815,738,6203,1520,29955,6031]} 1. e4 {[%emt 0:00:01]} c5 {[%emt 0:00:04]} 2. Nf3 {[%emt 0:00:04]} d6 {[%emt 0:00:04]} 3. d4 {[%emt 0:00:03]} cxd4 {[%emt 0:00:04]} 4. Nxd4 {[%emt 0:00:03]} Nf6 {[%emt 0:00:06]} 5. Nc3 {[%emt 0:00:02]} g6 {[%emt 0:00:03]} 6. Be3 {[%emt 0:00:05]} Nc6 {[%emt 0:00:04]} 7. f3 {[%emt 0:00:39] Inhibits Ng4.} e5 {[%emt 0:00:04]} 8. Nb3 {[%emt 0:02:21]} Be6 {[%emt 0:00:21] [#] White is better.} 9. Nd5 {[%emt 0:04:11]} (9. Qe2 $1 $16) 9... Bxd5 $11 {[%emt 0:00:07]} 10. exd5 {[%emt 0:00:04]} Ne7 {[%emt 0:00:04][%cal Of8g7]} 11. Bb5+ {[%emt 0:14:20]} Nd7 {[%emt 0:00:10]} 12. O-O {[%emt 0:00:22]} Bg7 {[%emt 0:00:21]} 13. Re1 {[%emt 0:06:57]} O-O {[%emt 0:00:47]} 14. Bf1 {[%emt 0:00:50]} Re8 {[%emt 0:08:36]} 15. c4 {[%emt 0:02:03]} Nf6 {[%emt 0:02:19]} 16. Nd2 {[%emt 0:06:10]} b5 {[%emt 0:07:10]} 17. cxb5 {[%emt 0:02:54]} Nfxd5 {[%emt 0:04:40]} 18. Bf2 {[%emt 0:00:17]} Nf4 {[%emt 0:00:56]} 19. a4 {[%emt 0:03:04]} Nf5 {[%emt 0:03:24]} 20. a5 {[%emt 0:04:28]} Nd4 {[%emt 0:02:22]} ({Better is} 20... d5) 21. Nb3 {[%emt 0:05:31]} Nfe6 {[%emt 0:00:24]} 22. Bc4 {[%emt 0:04:05]} d5 {[%emt 0:04:50]} 23. Nxd4 {[%emt 0:01:57]} exd4 {[%emt 0:04:16]} 24. Bf1 {[%emt 0:02:13]} Qd6 {[%emt 0:03:39]} 25. Qd2 {[%emt 0:05:01]} Be5 {[%emt 0:02:29] White now steadily converts the win.} (25... Rec8 $14) 26. g3 $16 {[%emt 0:00:59]} Reb8 {[%emt 0:00:33]} (26... Bf6 $16 {is a better defense.} 27. Rec1 Qf8) 27. Rac1 $18 {[%emt 0:03:19] Rc6 is the strong threat.} Bg7 {[%emt 0:04:37]} 28. Rc6 {[%emt 0:02:08] White is more active.} Qd8 {[%emt 0:00:18]} 29. Rec1 {[%emt 0:03:29]} Qd7 {[%emt 0:11:36]} 30. f4 {[%emt 0:02:35]} Nd8 {[%emt 0:11:00]} 31. Rc7 {[%emt 0:05:14]} Qd6 {[%emt 0:00:33]} (31... Qe8 $142 32. a6 (32. Bxd4 Bxd4+ 33. Qxd4 Ne6 $11) 32... Ne6) 32. Qe1 {[%emt 0:09:32]} ({Resist} 32. f5 $6 gxf5 33. Bxd4 (33. Qf4 Qxf4 34. gxf4 Ne6 $16) 33... Ne6 (33... Bxd4+ $2 34. Qxd4 Qh6 35. Qe5 $18) 34. Bxg7 (34. Rxa7 $2 Bxd4+ 35. Kh1 Bxa7 $19) 34... Kxg7 $18) 32... Ne6 {[%emt 0:07:17]} 33. R7c6 {[%emt 0:00:01]} Qf8 {[%emt 0:00:06]} 34. h4 {[%emt 0:04:26]} Nd8 {[%emt 0:01:35]} 35. R6c5 {[%emt 0:01:18]} Ne6 {[%emt 0:04:35]} 36. Rxd5 {[%emt 0:00:02]} Rd8 {[%emt 0:00:01]} (36... Re8 $142) 37. Bg2 {[%emt 0:01:50]} Rab8 {[%emt 0:02:04] [#]} 38. b6 $1 {[%emt 0:03:10][%mdl 512]} axb6 {[%emt 0:01:55]} 39. a6 {[%emt 0:00:01]} Re8 {[%emt 0:03:22][%cal Oe6f4]} 40. Qf1 {[%emt 0:01:42]} Qe7 {[%emt 0:03:52]} 41. Qc4 {[%emt 0:05:02] Prevents Rbc8.} Ra8 {[%emt 0:04:16][%cal Bb8a8,Ba8a7,Ba7c7][%mdl 32]} 42. f5 {[%emt 0:04:59]} gxf5 {[%emt 0:01:09]} 43. Rxf5 {[%emt 0:01:58]} Ra7 {[%emt 0:00:09]} 44. b4 {[%emt 0:02:50][%cal Bb2b4,Bb4b5][%mdl 32]} Rc7 {[%emt 0:18:11]} 45. Bc6 {[%emt 0:00:05]} Rec8 {[%emt 0:01:04][%cal Be8c8,Bc8c7,Bc7a7][%mdl 32]} 46. b5 {[%emt 0:01:11]} Qa3 {[%emt 0:02:34]} 47. Re1 {[%emt 0:04:15]} Qa5 $2 {[%emt 0:00:26]} (47... Kh8 48. Kh2 h6) 48. Qd5 {[%emt 0:07:14] Black is weak on the light squares} Re7 {[%emt 0:04:45]} 49. Qe4 {[%emt 0:04:32]} Rcc7 {[%emt 0:01:04]} 50. Qb1 {[%emt 0:02:45]} Ra7 {[%emt 0:02:10]} 51. Bd5 {[%emt 0:00:50][%cal Of5f7] And now Rxf7! would win.} Qd2 {[%emt 0:00:58]} 52. Rd1 {[%emt 0:00:40]} Qh6 {[%emt 0:01:15]} 53. Qb3 {[%emt 0:01:03]} Nc5 {[%emt 0:01:32]} (53... Rec7 $142 54. Qf3 Rc3) 54. Qf3 {[%emt 0:00:14]} Ne6 {[%emt 0:02:43]} 55. Be4 {[%emt 0:01:23]} Nf8 {[%emt 0:01:00]} 56. Bd5 {[%emt 0:01:26]} Ne6 $1 {[%emt 0:00:19] Repels Rg5} 57. Be4 {[%emt 0:00:01]} Nf8 $1 {[%emt 0:00:02]} 58. Rg5 {[%emt 0:00:38]} Rad7 {[%emt 0:02:49]} 59. Bc6 {[%emt 0:00:21]} Rd6 {[%emt 0:00:47]} 60. Rxd4 {[%emt 0:00:38]} Rxd4 {[%emt 0:00:33]} 61. Bxd4 {[%emt 0:00:01][%cal Bf2d4,Bd4g7,Bg7h6][%mdl 32]} Ne6 {[%emt 0:00:00]} 62. Bxg7 {[%emt 0:00:31] This pair of bishops is nice.} Nxg5 {[%emt 0:00:01]} 63. Bxh6 {[%emt 0:00:07] Weighted Error Value: White=0.48/Black=0.23 (precise) .  Mistake:       	White=1     	Black=7      Inaccurate:     	White=1     	Black=3      OK:         	White=27    	Black=17     Best:        	White=1     	Black=1      Strong:       	---       	Black=2} 1-0

[Event "British Championship 2024"]
[Site "Hull"]
[Date "2024.07.31"]
[Round "3.17"]
[White "Southcott-Moyers, Indy"]
[Black "Trent, Lawrence"]
[Result "1/2-1/2"]
[Annotator "RC"]
[ECO "E69"]
[WhiteElo "2182"]
[BlackElo "2416"]
[PlyCount "131"]
[EventDate "2024.07.31"]
[EventCountry "GBR"]
[SourceTitle "playchess.com"]
[Source "ChessBase"]
[SourceQuality "1"]
[TimeControl "40/5400+30:1800+30"]

1. d4 {[%emt 0:00:04]} Nf6 {[%emt 0:02:25]} 2. c4 {[%emt 0:00:09]} g6 {[%emt 0:00:07]} 3. g3 {[%emt 0:00:17]} Bg7 {[%emt 0:00:14]} 4. Bg2 {[%emt 0:00:06]} O-O {[%emt 0:00:09]} 5. Nc3 {[%emt 0:00:03]} d6 {[%emt 0:00:03]} 6. h3 {[%emt 0:00:05]} Nbd7 {[%emt 0:01:48]} 7. e4 {[%emt 0:10:00]} e5 {[%emt 0:05:47]} 8. Nf3 {[%emt 0:00:22]} Re8 {[%emt 0:16:14]} 9. O-O {[%emt 0:05:06]} c6 {[%emt 0:00:10]} 10. Re1 {[%emt 0:03:39]} a5 {[%emt 0:00:31]} 11. d5 {[%emt 0:13:48]} Nc5 {[%emt 0:03:00]} 12. Bf1 {[%emt 0:13:22]} Bd7 {[%emt 0:05:14]} 13. b3 {[%emt 0:07:44]} cxd5 {[%emt 0:05:23]} 14. cxd5 {[%emt 0:03:06]} b5 {[%emt 0:06:44]} 15. Nd2 {[%emt 0:05:08]} b4 {[%emt 0:11:17]} 16. Na4 {[%emt 0:03:10]} Nxa4 {[%emt 0:12:18]} 17. bxa4 {[%emt 0:02:06]} Qb8 {[%emt 0:00:17]} 18. a3 {[%emt 0:05:44]} Rc8 {[%emt 0:03:27]} 19. axb4 {[%emt 0:01:56]} axb4 {[%emt 0:00:03]} 20. a5 {[%emt 0:04:35]} Bb5 {[%emt 0:06:41]} 21. Bxb5 {[%emt 0:03:13]} Qxb5 {[%emt 0:01:17]} 22. Nb3 {[%emt 0:08:22]} Qc4 {[%emt 0:02:08]} 23. Qf3 {[%emt 0:00:34]} Qc2 {[%emt 0:06:05]} 24. Bd2 {[%emt 0:06:21]} Rc3 {[%emt 0:00:04]} 25. Bxc3 {[%emt 0:00:04]} Qxb3 {[%emt 0:00:02]} 26. Re3 {[%emt 0:02:34]} bxc3 {[%emt 0:00:05]} 27. Rxc3 {[%emt 0:00:07]} Qb4 {[%emt 0:11:02]} 28. Rb3 {[%emt 0:01:07]} Qxe4 {[%emt 0:00:56]} 29. Qxe4 {[%emt 0:00:27]} Nxe4 {[%emt 0:00:02]} 30. a6 {[%emt 0:00:10]} Nc5 {[%emt 0:00:04]} 31. Rb6 {[%emt 0:00:05]} e4 {[%emt 0:01:02]} 32. Ra2 {[%emt 0:01:15]} Ra7 {[%emt 0:00:40]} 33. Rxd6 {[%emt 0:01:13]} Bd4 {[%emt 0:00:02]} 34. Rc6 {[%emt 0:00:27]} Kf8 {[%emt 0:01:06]} 35. Rc2 {[%emt 0:00:55]} Ke7 {[%emt 0:00:50]} 36. Rc4 {[%emt 0:00:30]} e3 {[%emt 0:00:31]} 37. R4xc5 {[%emt 0:00:28]} exf2+ {[%emt 0:00:19]} 38. Kf1 {[%emt 0:00:10]} Bxc5 {[%emt 0:00:04]} 39. Rxc5 {[%emt 0:00:01]} Rxa6 {[%emt 0:00:06]} 40. Kxf2 {[%emt 0:00:09]} Kd6 {[%emt 0:00:55]} 41. Rb5 {[%emt 0:30:31]} Ra7 {[%emt 0:30:29]} 42. Kf3 {[%emt 0:00:38]} Ke5 {[%emt 0:00:10]} 43. h4 {[%emt 0:00:00]} f5 {[%emt 0:00:00]} 44. Rb3 {[%emt 0:00:00]} Kxd5 {[%emt 0:00:00]} 45. g4 {[%emt 0:00:00]} Ra4 {[%emt 0:00:00]} 46. gxf5 {[%emt 0:00:00]} gxf5 {[%emt 0:00:00]} 47. Rb5+ {[%emt 0:00:00]} Ke6 {[%emt 0:00:00]} 48. Rb6+ {[%emt 0:00:00]} Ke5 {[%emt 0:00:00]} 49. Rb5+ {[%emt 0:00:00]} Kf6 {[%emt 0:00:00]} 50. Rb6+ {[%emt 0:00:00]} Kg7 {[%emt 0:00:00]} 51. Kg3 {[%emt 0:00:00]} Rg4+ {[%emt 0:00:00]} 52. Kh3 {[%emt 0:00:00]} h5 {[%emt 0:00:00]} 53. Rb5 {[%emt 0:00:00]} Kf6 {[%emt 0:00:00]} 54. Rb6+ {[%emt 0:00:00]} Ke5 {[%emt 0:00:00]} 55. Rh6 {[%emt 0:00:31]} Ke4 {[%emt 0:00:00]} 56. Rxh5 {[%emt 0:00:24]} Rg1 {[%emt 0:00:00]} 57. Rg5 {[%emt 0:01:36]} Rh1+ {[%emt 0:00:00]} 58. Kg2 {[%emt 0:00:46]} Rxh4 {[%emt 0:00:00]} 59. Rg3 {[%emt 0:00:13]} Rh8 {[%emt 0:00:00]} 60. Kf2 {[%emt 0:00:42]} Rh2+ {[%emt 0:00:00]} 61. Kf1 {[%emt 0:00:18]} Ra2 {[%emt 0:00:00]} 62. Rb3 {[%emt 0:00:06]} f4 {[%emt 0:00:00]} 63. Rc3 {[%emt 0:00:06]} Kf5 {[%emt 0:00:00]} 64. Rc5+ {[%emt 0:00:13]} Kg4 {[%emt 0:00:00]} 65. Rc3 {[%emt 0:00:04]} f3 {[%emt 0:00:00]} 66. Rc8 {[%emt 0:00:04]} 1/2-1/2

[Event "British Championship 2024"]
[Site "Hull"]
[Date "2024.07.31"]
[Round "3.18"]
[White "Willow, Jonah B"]
[Black "Hryshchenko, Kamila"]
[Result "1-0"]
[Annotator "TA"]
[ECO "B06"]
[WhiteElo "2422"]
[BlackElo "2161"]
[PlyCount "81"]
[EventDate "2024.07.31"]
[EventCountry "GBR"]
[SourceTitle "playchess.com"]
[Source "ChessBase"]
[SourceQuality "1"]
[TimeControl "40/5400+30:1800+30"]

{[%evp 9,81,28,35,40,39,43,39,60,47,33,27,0,0,0,0,29,14,0,6,-25,-14,-70,-59,-79,55,49,77,84,86,57,68,19,27,48,99,99,143,124,126,78,129,127,140,99,108,75,142,145,227,242,296,292,270,294,511,543,536,542,683,611,742,742,722,740,745,729,735,687,806,802,762,777,870,862]} 1. e4 {[%emt 0:00:06]} d6 {[%emt 0:00:05]} 2. d4 {[%emt 0:00:06]} g6 {[%emt 0:00:05]} 3. Nc3 {[%emt 0:00:12]} Bg7 {[%emt 0:00:07]} 4. Be3 {[%emt 0:00:11]} a6 {[%emt 0:00:20]} 5. h4 {[%emt 0:04:11]} h5 {[%emt 0:00:26]} 6. f3 {[%emt 0:01:10]} Nf6 {[%emt 0:00:24]} 7. Nh3 {[%emt 0:00:05]} Bxh3 {[%emt 0:00:17]} 8. Rxh3 {[%emt 0:00:03] White is slightly better.} Nbd7 {[%emt 0:00:40]} 9. a4 {[%emt 0:09:37]} c6 {[%emt 0:06:04]} 10. a5 {[%emt 0:03:10]} b5 {[%emt 0:01:58]} 11. axb6 {[%emt 0:02:50]} Qxb6 {[%emt 0:00:18]} 12. Na4 {[%emt 0:02:43]} Qc7 {[%emt 0:03:15]} 13. Qd2 {[%emt 0:05:37]} O-O {[%emt 0:03:37]} 14. Kf2 {[%emt 0:17:09]} Rfb8 {[%emt 0:05:39]} 15. Be2 {[%emt 0:01:54]} (15. Bf4 $11) 15... e5 $1 $15 {[%emt 0:01:43]} 16. c4 {[%emt 0:17:33]} Rb3 {[%emt 0:07:57]} (16... d5 $17 17. cxd5 cxd5) 17. d5 $14 {[%emt 0:01:42]} Kh7 {[%emt 0:02:47]} 18. Bd1 {[%emt 0:03:36]} Rb7 {[%emt 0:01:24]} 19. Rh1 {[%emt 0:02:42]} a5 {[%emt 0:01:39]} 20. Bc2 {[%emt 0:02:52]} (20. g3 $14) 20... Rb4 {[%emt 0:08:02]} 21. b3 {[%emt 0:01:29]} Rc8 {[%emt 0:00:39]} (21... cxd5 $14 22. cxd5 Ng8) 22. dxc6 $16 {[%emt 0:03:28]} Qxc6 {[%emt 0:00:24]} 23. Rhd1 {[%emt 0:00:25]} Bf8 {[%emt 0:04:40]} 24. Bg5 {[%emt 0:06:46]} (24. Kf1 $142) 24... Be7 {[%emt 0:08:38]} (24... Ne8 $142) 25. Nc3 {[%emt 0:03:17]} Qb6+ {[%emt 0:01:47]} 26. Qe3 {[%emt 0:03:59] Active counter play!} Qb8 {[%emt 0:12:35][%cal Od6d5] [#] ...d5! would now be deadly.} 27. Kf1 {[%emt 0:02:09]} ({Don't play} 27. Rxa5 $6 Bd8 28. Ra6 Bb6 29. Rxb6 Rxb6 $11) 27... Bd8 {[%emt 0:01:51]} (27... Nc5 $142) 28. Qd2 {[%emt 0:00:48]} Bb6 {[%emt 0:12:25]} (28... Rc6 $16 {was worth a try.} 29. Nb5 Kg7) 29. Qxd6 $18 {[%emt 0:01:49]} Bd4 {[%emt 0:00:25]} 30. Rxd4 {[%emt 0:01:01]} exd4 {[%emt 0:00:11]} 31. Qxd4 {[%emt 0:00:01]} Rc6 {[%emt 0:04:03]} (31... Qb6 {was necessary.} 32. Qxb6 Rxb6 33. Rxa5 Nf8) 32. Nd5 {[%emt 0:01:29] White is clearly winning.} Nxd5 {[%emt 0:01:25]} 33. Qxd5 {[%emt 0:00:04]} Ne5 {[%emt 0:04:03][%cal Bd7e5,Be5c4,Bc4e3][%mdl 32]} 34. Bf4 {[%emt 0:00:32][%cal Bg5f4,Bf4b8,Bb8a7,Ba7b6,Bb6c5][%mdl 32]} ({Not} 34. Qxa5 Rb7 35. Qc3 Nd7 $18) 34... Re6 {[%emt 0:01:00]} 35. Rxa5 {[%emt 0:00:38]} Nxc4 {[%emt 0:00:44]} 36. Bxb8 {[%emt 0:00:44]} Ne3+ {[%emt 0:00:04]} 37. Kf2 {[%emt 0:00:04]} Nxd5 {[%emt 0:00:04]} 38. exd5 {[%emt 0:00:02]} Re8 {[%emt 0:00:21]} 39. Ba7 {[%emt 0:02:10]} Ra8 {[%emt 0:00:30] [#]} 40. Bb6 $1 {[%emt 0:01:30]} Rc8 {[%emt 0:00:28]} (40... Rxa5 41. Bxa5) 41. Bc5 {[%emt 0:00:56] Weighted Error Value: White=0.14 (very precise) /Black=0.43.  Mistake:       	White=3     	Black=6      Inaccurate:     	White=3     	Black=2      OK:         	White=8     	Black=7      Best:        	White=3     	Black=2      Strong:       	---       	Black=1} 1-0